[Event "Late-Titled-Tuesday-Blitz-August-29-2023"]
[Site "Chess.com"]
[Date "2023.08.29"]
[Round "2"]
[White "tteshan"]
[Black "GMKrikor"]
[Result "0-1"]
[WhiteElo "2560"]
[BlackElo "2883"]
[TimeControl "180+1"]
[EndTime "14:19:00 PDT"]
[Termination "GMKrikor won by resignation"]

1. d4 {[%clk 0:03:00.9]} 1... Nf6 {[%clk 0:02:40.6]} 2. c4 {[%clk 0:03:01.2]}
2... g6 {[%clk 0:02:39.3]} 3. Nc3 {[%clk 0:03:01.7]} 3... d5 {[%clk 0:02:39.3]}
4. cxd5 {[%clk 0:03:01.8]} 4... Nxd5 {[%clk 0:02:40.2]} 5. e4 {[%clk 0:03:02.1]}
5... Nxc3 {[%clk 0:02:40.7]} 6. bxc3 {[%clk 0:03:03]} 6... c5 {[%clk 0:02:41.3]}
7. Be3 {[%clk 0:03:02.8]} 7... Bg7 {[%clk 0:02:40]} 8. Qd2 {[%clk 0:03:03]} 8...
Qa5 {[%clk 0:02:29.7]} 9. Rc1 {[%clk 0:03:03.2]} 9... O-O {[%clk 0:02:14.3]} 10.
Nf3 {[%clk 0:03:02.9]} 10... Nd7 {[%clk 0:02:05]} 11. Be2 {[%clk 0:02:59.8]}
11... Nf6 {[%clk 0:01:57.7]} 12. Bd3 {[%clk 0:02:47]} 12... cxd4 {[%clk
0:01:43.9]} 13. cxd4 {[%clk 0:02:44.8]} 13... Qxd2+ {[%clk 0:01:44.8]} 14. Bxd2
{[%clk 0:02:39.3]} 14... Rd8 {[%clk 0:01:41.9]} 15. h3 {[%clk 0:02:35.5]} 15...
b6 {[%clk 0:01:42]} 16. Rc7 {[%clk 0:02:25.8]} 16... Rd7 {[%clk 0:01:41.8]} 17.
Rxd7 {[%clk 0:02:22.7]} 17... Bxd7 {[%clk 0:01:42.7]} 18. Ke2 {[%clk 0:02:22.1]}
18... Rc8 {[%clk 0:01:43]} 19. Rc1 {[%clk 0:02:19.9]} 19... Rxc1 {[%clk
0:01:42.5]} 20. Bxc1 {[%clk 0:02:20.8]} 20... e6 {[%clk 0:01:31.2]} 21. Ne5
{[%clk 0:02:14.7]} 21... Ba4 {[%clk 0:01:31.3]} 22. Ba3 {[%clk 0:02:02.2]} 22...
Ne8 {[%clk 0:01:08.8]} 23. Nf3 {[%clk 0:01:54.5]} 23... Nc7 {[%clk 0:01:07.4]}
24. Bd6 {[%clk 0:01:41.7]} 24... Nb5 {[%clk 0:01:07.1]} 25. Bb4 {[%clk
0:01:24.2]} 25... Nxd4+ {[%clk 0:01:04.1]} 26. Nxd4 {[%clk 0:01:16.5]} 26...
Bxd4 {[%clk 0:01:05]} 27. Ba6 {[%clk 0:01:08.8]} 27... Bc6 {[%clk 0:00:56.7]}
28. f3 {[%clk 0:01:07.4]} 28... f5 {[%clk 0:00:52.6]} 29. Kd3 {[%clk 0:01:05.3]}
29... Be5 {[%clk 0:00:49]} 30. exf5 {[%clk 0:01:00.6]} 30... gxf5 {[%clk
0:00:49.9]} 31. a3 {[%clk 0:00:28.4]} 31... Kf7 {[%clk 0:00:49.6]} 32. Kc4
{[%clk 0:00:27.3]} 32... h5 {[%clk 0:00:46.7]} 33. Bb5 {[%clk 0:00:24.3]} 33...
Bd5+ {[%clk 0:00:45.3]} 34. Kd3 {[%clk 0:00:24.7]} 34... Bb7 {[%clk 0:00:45.2]}
35. Bc4 {[%clk 0:00:20.5]} 35... h4 {[%clk 0:00:37]} 36. Be1 {[%clk 0:00:19.2]}
36... Bf6 {[%clk 0:00:35]} 37. Bc3 {[%clk 0:00:18.2]} 37... Bxc3 {[%clk
0:00:28.5]} 38. Kxc3 {[%clk 0:00:19.1]} 38... Kf6 {[%clk 0:00:29.3]} 39. Kd4
{[%clk 0:00:19.1]} 39... e5+ {[%clk 0:00:28.8]} 40. Ke3 {[%clk 0:00:19.6]} 40...
f4+ {[%clk 0:00:28.9]} 41. Kd3 {[%clk 0:00:18.7]} 41... e4+ {[%clk 0:00:24.2]}
42. fxe4 {[%clk 0:00:17.1]} 42... Ke5 {[%clk 0:00:24.9]} 43. Kc3 {[%clk
0:00:10.2]} 43... Bxe4 {[%clk 0:00:24.3]} 44. Bf1 {[%clk 0:00:10.9]} 44... a5
{[%clk 0:00:23.9]} 45. Kc4 {[%clk 0:00:10.5]} 45... Bc6 {[%clk 0:00:22.8]} 46.
Kc3 {[%clk 0:00:06.6]} 46... Kd5 {[%clk 0:00:13.9]} 47. Be2 {[%clk 0:00:05.2]}
47... Kc5 {[%clk 0:00:14.1]} 48. Bf1 {[%clk 0:00:05.1]} 48... Be4 {[%clk
0:00:11.9]} 49. Kb3 {[%clk 0:00:03.7]} 49... b5 {[%clk 0:00:10.3]} 50. Kc3
{[%clk 0:00:03.7]} 50... Bd5 {[%clk 0:00:07.8]} 51. a4 {[%clk 0:00:01.7]} 51...
bxa4 {[%clk 0:00:04.3]} 52. Kb2 {[%clk 0:00:02.4]} 52... Kb4 {[%clk 0:00:04.1]}
53. Ka1 {[%clk 0:00:02.5]} 53... a3 {[%clk 0:00:05]} 54. Kb1 {[%clk 0:00:02.7]}
54... Kc5 {[%clk 0:00:05.7]} 55. Ka1 {[%clk 0:00:03.6]} 55... Kd4 {[%clk
0:00:06.4]} 56. Kb1 {[%clk 0:00:03.1]} 56... Ke3 {[%clk 0:00:07.2]} 0-1

[Event "Late-Titled-Tuesday-Blitz-August-29-2023"]
[Site "Chess.com"]
[Date "2023.08.29"]
[Round "2"]
[White "KaydenTroffChess"]
[Black "Kleyton_Lima"]
[Result "1-0"]
[WhiteElo "2778"]
[BlackElo "2522"]
[TimeControl "180+1"]
[EndTime "14:19:02 PDT"]
[Termination "KaydenTroffChess won by resignation"]

1. d4 {[%clk 0:03:00.9]} 1... Nf6 {[%clk 0:02:59.9]} 2. Nf3 {[%clk 0:03:01.5]}
2... g6 {[%clk 0:02:59.9]} 3. Bg5 {[%clk 0:03:01.8]} 3... Bg7 {[%clk 0:03:00.1]}
4. Nbd2 {[%clk 0:03:02.1]} 4... d5 {[%clk 0:03:00.6]} 5. e3 {[%clk 0:03:01.4]}
5... O-O {[%clk 0:03:00.1]} 6. Bd3 {[%clk 0:03:00.4]} 6... Nbd7 {[%clk
0:02:56.9]} 7. O-O {[%clk 0:02:59.8]} 7... Re8 {[%clk 0:02:55.3]} 8. c3 {[%clk
0:02:59.8]} 8... h6 {[%clk 0:02:49.7]} 9. Bf4 {[%clk 0:02:48.1]} 9... Nh5 {[%clk
0:02:44.5]} 10. Be5 {[%clk 0:02:47.9]} 10... Bxe5 {[%clk 0:02:39.2]} 11. Nxe5
{[%clk 0:02:46.6]} 11... Nxe5 {[%clk 0:02:38.8]} 12. dxe5 {[%clk 0:02:47.5]}
12... Ng7 {[%clk 0:02:37.8]} 13. f4 {[%clk 0:02:41]} 13... c5 {[%clk 0:02:32.3]}
14. Qe2 {[%clk 0:02:24.1]} 14... Bf5 {[%clk 0:02:32.1]} 15. e4 {[%clk
0:02:19.1]} 15... dxe4 {[%clk 0:02:29.3]} 16. Nxe4 {[%clk 0:02:20]} 16... b6
{[%clk 0:02:24.8]} 17. g4 {[%clk 0:02:05.8]} 17... Bxg4 {[%clk 0:02:16.1]} 18.
Qxg4 {[%clk 0:01:56.8]} 18... Qxd3 {[%clk 0:02:16.3]} 19. Ng3 {[%clk 0:01:57.4]}
19... Rad8 {[%clk 0:02:10.5]} 20. Rae1 {[%clk 0:01:48.4]} 20... Nf5 {[%clk
0:02:00.8]} 21. e6 {[%clk 0:01:41.9]} 21... Ne3 {[%clk 0:01:52.2]} 22. exf7+
{[%clk 0:01:33.3]} 22... Kxf7 {[%clk 0:01:53.1]} 23. Qh4 {[%clk 0:01:29]} 23...
Nxf1 {[%clk 0:01:42.9]} 24. Rxf1 {[%clk 0:01:26.3]} 24... Kg7 {[%clk 0:01:37.2]}
25. f5 {[%clk 0:01:23.6]} 25... g5 {[%clk 0:01:37.1]} 26. Qh5 {[%clk 0:01:23.5]}
26... Qe3+ {[%clk 0:01:24.4]} 27. Kh1 {[%clk 0:01:17.8]} 27... g4 {[%clk
0:01:24.5]} 28. f6+ {[%clk 0:00:47.1]} 28... Kh8 {[%clk 0:01:24.2]} 29. Qf7
{[%clk 0:00:39.9]} 29... Qg5 {[%clk 0:01:14.8]} 30. Rf5 {[%clk 0:00:31.6]} 30...
Rd1+ {[%clk 0:01:05.2]} 31. Nf1 {[%clk 0:00:31.5]} 31... Qg8 {[%clk 0:00:54.6]}
32. Qh5 {[%clk 0:00:30.3]} 32... exf6 {[%clk 0:00:50.7]} 33. Qxh6+ {[%clk
0:00:23.5]} 33... Qh7 {[%clk 0:00:51.1]} 34. Qxf6+ {[%clk 0:00:23]} 34... Qg7
{[%clk 0:00:51.2]} 35. Qh4+ {[%clk 0:00:18.2]} 35... Kg8 {[%clk 0:00:50.2]} 36.
Rg5 {[%clk 0:00:17.9]} 36... Rxf1+ {[%clk 0:00:48.8]} 37. Kg2 {[%clk 0:00:18.3]}
37... Rf7 {[%clk 0:00:46.1]} 38. Rxg7+ {[%clk 0:00:18.6]} 38... Rxg7 {[%clk
0:00:44]} 39. Qh6 {[%clk 0:00:18.8]} 39... Re2+ {[%clk 0:00:38.7]} 40. Kg3
{[%clk 0:00:19.1]} 40... Rxb2 {[%clk 0:00:37.6]} 41. Qe6+ {[%clk 0:00:19.3]}
41... Rf7 {[%clk 0:00:37.5]} 42. Qg6+ {[%clk 0:00:17.8]} 42... Kf8 {[%clk
0:00:32.2]} 43. Qd6+ {[%clk 0:00:17.8]} 43... Kg7 {[%clk 0:00:32.7]} 44. Qe5+
{[%clk 0:00:17.5]} 44... Rf6 {[%clk 0:00:29]} 45. Kxg4 {[%clk 0:00:16.8]} 45...
Rg2+ {[%clk 0:00:26]} 46. Kh3 {[%clk 0:00:16.7]} 46... Rg6 {[%clk 0:00:22.9]}
47. Qc7+ {[%clk 0:00:16.8]} 47... Rf7 {[%clk 0:00:22.4]} 48. Qe5+ {[%clk
0:00:16.6]} 48... Rff6 {[%clk 0:00:22.6]} 49. a4 {[%clk 0:00:11.5]} 49... Kf8
{[%clk 0:00:16.8]} 50. Qb8+ {[%clk 0:00:11.2]} 50... Ke7 {[%clk 0:00:16.9]} 51.
Qxa7+ {[%clk 0:00:10.8]} 51... Kf8 {[%clk 0:00:17.5]} 52. Qb8+ {[%clk 0:00:11]}
52... Kg7 {[%clk 0:00:18]} 53. Qe5 {[%clk 0:00:10.9]} 53... Kh7 {[%clk
0:00:17.5]} 54. Qe7+ {[%clk 0:00:08.5]} 54... Kh6 {[%clk 0:00:17.7]} 55. Qc7
{[%clk 0:00:07.2]} 55... Kg5 {[%clk 0:00:17.7]} 56. Kg3 {[%clk 0:00:06.8]} 56...
Kh6+ {[%clk 0:00:17.2]} 57. Kh4 {[%clk 0:00:07.4]} 57... Re6 {[%clk 0:00:12]}
58. Qf4+ {[%clk 0:00:07.4]} 58... Kg7 {[%clk 0:00:12.5]} 59. Qc7+ {[%clk
0:00:08.3]} 59... Kh6 {[%clk 0:00:12.7]} 60. Qb7 {[%clk 0:00:06.9]} 60... Ref6
{[%clk 0:00:12]} 61. Qb8 {[%clk 0:00:06.5]} 61... Rf4+ {[%clk 0:00:11.4]} 62.
Qxf4+ {[%clk 0:00:06.4]} 1-0

[Event "Late-Titled-Tuesday-Blitz-August-29-2023"]
[Site "Chess.com"]
[Date "2023.08.29"]
[Round "2"]
[White "ATM622"]
[Black "Petrakejzar96"]
[Result "0-1"]
[WhiteElo "2470"]
[BlackElo "2318"]
[TimeControl "180+1"]
[EndTime "14:19:05 PDT"]
[Termination "Petrakejzar96 won by resignation"]

1. d4 {[%clk 0:03:00.9]} 1... d5 {[%clk 0:03:00]} 2. c4 {[%clk 0:03:01.1]} 2...
c6 {[%clk 0:03:00]} 3. Nf3 {[%clk 0:03:00.1]} 3... Nf6 {[%clk 0:03:00.4]} 4.
Nbd2 {[%clk 0:02:59.1]} 4... Bf5 {[%clk 0:02:59.4]} 5. Nh4 {[%clk 0:02:55.7]}
5... Bg6 {[%clk 0:02:59]} 6. Qb3 {[%clk 0:02:53.7]} 6... Qb6 {[%clk 0:02:58.1]}
7. Qh3 {[%clk 0:02:54]} 7... Nbd7 {[%clk 0:02:52.1]} 8. Nxg6 {[%clk 0:02:53.9]}
8... fxg6 {[%clk 0:02:52.3]} 9. e3 {[%clk 0:02:53.8]} 9... g5 {[%clk 0:02:43.1]}
10. c5 {[%clk 0:02:48.1]} 10... Qc7 {[%clk 0:02:42.2]} 11. Qe6 {[%clk
0:02:45.5]} 11... g6 {[%clk 0:02:39]} 12. b4 {[%clk 0:02:27.2]} 12... Bg7 {[%clk
0:02:38]} 13. b5 {[%clk 0:02:25.6]} 13... Nf8 {[%clk 0:02:37.2]} 14. Qh3 {[%clk
0:02:25.3]} 14... g4 {[%clk 0:02:32.3]} 15. Qg3 {[%clk 0:02:24.8]} 15... Qxg3
{[%clk 0:02:31]} 16. hxg3 {[%clk 0:02:24.4]} 16... h5 {[%clk 0:02:27]} 17. bxc6
{[%clk 0:02:22.5]} 17... bxc6 {[%clk 0:02:27.9]} 18. Rb1 {[%clk 0:02:20]} 18...
Ne6 {[%clk 0:02:25]} 19. Ba6 {[%clk 0:02:15.5]} 19... Kf7 {[%clk 0:02:23.6]} 20.
Ba3 {[%clk 0:02:08.8]} 20... Rab8 {[%clk 0:02:20.5]} 21. Ke2 {[%clk 0:02:07.9]}
21... Rhd8 {[%clk 0:02:09.4]} 22. Bb4 {[%clk 0:02:05.2]} 22... Ne8 {[%clk
0:02:01.6]} 23. Ba5 {[%clk 0:02:02.6]} 23... N8c7 {[%clk 0:01:53.2]} 24. Bb7
{[%clk 0:01:56.2]} 24... Rf8 {[%clk 0:01:27.4]} 25. Bxc6 {[%clk 0:01:51.3]}
25... Bxd4 {[%clk 0:01:22.9]} 26. exd4 {[%clk 0:01:32.5]} 26... Nxd4+ {[%clk
0:01:22.4]} 27. Kd3 {[%clk 0:01:32.6]} 27... Nxc6 {[%clk 0:01:22.4]} 28. Bxc7
{[%clk 0:01:32.8]} 28... Rbc8 {[%clk 0:01:22.5]} 29. Bf4 {[%clk 0:01:30]} 29...
e5 {[%clk 0:01:19.2]} 30. Rb7+ {[%clk 0:01:23.1]} 30... Ke6 {[%clk 0:01:18.3]}
31. Be3 {[%clk 0:01:14.1]} 31... d4 {[%clk 0:01:17.7]} 32. Ne4 {[%clk
0:00:59.6]} 32... dxe3 {[%clk 0:01:12.7]} 33. Ng5+ {[%clk 0:00:59.5]} 33... Kf5
{[%clk 0:01:11]} 34. Ne4 {[%clk 0:00:58.3]} 34... Ke6 {[%clk 0:00:52.5]} 35.
Kxe3 {[%clk 0:00:53.5]} 35... Nd4 {[%clk 0:00:48.3]} 36. Rg7 {[%clk 0:00:43.4]}
36... Nf5+ {[%clk 0:00:40.6]} 37. Ke2 {[%clk 0:00:27.1]} 37... Nxg7 {[%clk
0:00:41.5]} 38. Rd1 {[%clk 0:00:26.5]} 38... Rfd8 {[%clk 0:00:41.5]} 39. Rb1
{[%clk 0:00:24.1]} 39... Kd5 {[%clk 0:00:40.7]} 40. Ke3 {[%clk 0:00:23.1]} 40...
Nf5+ {[%clk 0:00:39.2]} 41. Kd3 {[%clk 0:00:23.3]} 41... Kc6+ {[%clk 0:00:38.9]}
42. Kc3 {[%clk 0:00:20.2]} 42... Rb8 {[%clk 0:00:37.9]} 43. Re1 {[%clk 0:00:19]}
43... Rd4 {[%clk 0:00:35.9]} 44. Ng5 {[%clk 0:00:17.7]} 44... Rd5 {[%clk
0:00:35.7]} 45. Ne6 {[%clk 0:00:11.5]} 45... Nd4 {[%clk 0:00:30.3]} 46. Ng5
{[%clk 0:00:07.9]} 46... Rxc5+ {[%clk 0:00:29.4]} 47. Kd3 {[%clk 0:00:08.5]}
47... Rb2 {[%clk 0:00:27.1]} 48. Nf7 {[%clk 0:00:05.4]} 48... Rxf2 {[%clk
0:00:16]} 49. Nxe5+ {[%clk 0:00:04.5]} 49... Rxe5 {[%clk 0:00:15.6]} 50. Rxe5
{[%clk 0:00:03.8]} 50... Nb5 {[%clk 0:00:16]} 51. Re6+ {[%clk 0:00:03.9]} 51...
Nd6 {[%clk 0:00:16]} 52. Rxg6 {[%clk 0:00:04.8]} 52... Rxg2 {[%clk 0:00:16]} 53.
Rg5 {[%clk 0:00:04.1]} 53... Rxg3+ {[%clk 0:00:16]} 54. Kd4 {[%clk 0:00:04.7]}
54... h4 {[%clk 0:00:16.6]} 55. Ke5 {[%clk 0:00:04.2]} 55... Nf7+ {[%clk
0:00:15.1]} 56. Kf4 {[%clk 0:00:04.1]} 56... Nxg5 {[%clk 0:00:16]} 57. Kxg5
{[%clk 0:00:04.7]} 57... Ra3 {[%clk 0:00:16]} 58. Kxh4 {[%clk 0:00:05.6]} 58...
g3 {[%clk 0:00:16]} 59. Kg4 {[%clk 0:00:06.3]} 59... g2 {[%clk 0:00:16]} 0-1

[Event "Late-Titled-Tuesday-Blitz-August-29-2023"]
[Site "Chess.com"]
[Date "2023.08.29"]
[Round "2"]
[White "KrokerGuy"]
[Black "jamengrand"]
[Result "0-1"]
[WhiteElo "2489"]
[BlackElo "2349"]
[TimeControl "180+1"]
[EndTime "14:19:12 PDT"]
[Termination "jamengrand won by resignation"]

1. e4 {[%clk 0:03:00.9]} 1... c5 {[%clk 0:02:59.9]} 2. Nf3 {[%clk 0:02:59.5]}
2... Nc6 {[%clk 0:03:00]} 3. d4 {[%clk 0:03:00.2]} 3... cxd4 {[%clk 0:03:00.4]}
4. Nxd4 {[%clk 0:03:01.1]} 4... g6 {[%clk 0:03:00.6]} 5. Nc3 {[%clk 0:03:01.8]}
5... Bg7 {[%clk 0:03:01]} 6. Be3 {[%clk 0:03:02.6]} 6... Nf6 {[%clk 0:03:00.8]}
7. Bc4 {[%clk 0:03:03.1]} 7... O-O {[%clk 0:02:59.8]} 8. Bb3 {[%clk 0:03:03.7]}
8... Re8 {[%clk 0:03:00.1]} 9. f3 {[%clk 0:03:03.1]} 9... e6 {[%clk 0:02:59.4]}
10. f4 {[%clk 0:03:01.6]} 10... d6 {[%clk 0:02:59.2]} 11. Ndb5 {[%clk
0:02:55.8]} 11... d5 {[%clk 0:02:43.6]} 12. e5 {[%clk 0:02:18.1]} 12... Nd7
{[%clk 0:02:37.2]} 13. Nd6 {[%clk 0:02:13.4]} 13... Rf8 {[%clk 0:02:36.7]} 14.
Qd3 {[%clk 0:01:26.5]} 14... Ndxe5 {[%clk 0:02:32.4]} 15. fxe5 {[%clk
0:01:16.9]} 15... Nxe5 {[%clk 0:02:32.6]} 16. Qd2 {[%clk 0:01:12.2]} 16... Qxd6
{[%clk 0:02:31.9]} 17. O-O-O {[%clk 0:01:06.9]} 17... Ng4 {[%clk 0:02:31.3]} 18.
Bf4 {[%clk 0:00:46.5]} 18... Qxf4 {[%clk 0:02:30.9]} 19. Qxf4 {[%clk 0:00:46.2]}
19... Bh6 {[%clk 0:02:31.5]} 20. Rhf1 {[%clk 0:00:41]} 20... Bxf4+ {[%clk
0:02:28.7]} 21. Rxf4 {[%clk 0:00:41.9]} 21... Ne5 {[%clk 0:02:24]} 22. g4 {[%clk
0:00:38.5]} 22... Nc6 {[%clk 0:02:20.3]} 23. h4 {[%clk 0:00:38.4]} 23... Bd7
{[%clk 0:02:18.1]} 24. h5 {[%clk 0:00:38]} 24... gxh5 {[%clk 0:02:11.8]} 25.
gxh5 {[%clk 0:00:38.2]} 25... f5 {[%clk 0:02:11.9]} 26. Nb5 {[%clk 0:00:10.4]}
26... Rf6 {[%clk 0:02:05.5]} 27. Nd6 {[%clk 0:00:02.7]} 27... Rb8 {[%clk
0:01:59.1]} 28. Rff1 {[%clk 0:00:01.7]} 28... Kf8 {[%clk 0:01:54.4]} 29. Rg1
{[%clk 0:00:01.9]} 29... Ke7 {[%clk 0:01:53.7]} 30. Nb5 {[%clk 0:00:02.3]} 30...
Rbf8 {[%clk 0:01:47.7]} 31. h6 {[%clk 0:00:01.7]} 31... Rxh6 {[%clk 0:01:47.3]}
32. Rg7+ {[%clk 0:00:01.7]} 32... Rf7 {[%clk 0:01:47.6]} 33. Rg8 {[%clk
0:00:01.6]} 33... Rg6 {[%clk 0:01:47.3]} 34. Rh8 {[%clk 0:00:01.3]} 34... f4
{[%clk 0:01:44.6]} 35. Rh1 {[%clk 0:00:01.2]} 35... f3 {[%clk 0:01:43.7]} 36.
Nc3 {[%clk 0:00:01.1]} 36... Nd4 {[%clk 0:01:41.7]} 37. Nd1 {[%clk 0:00:01.2]}
37... Nxb3+ {[%clk 0:01:41.2]} 38. axb3 {[%clk 0:00:01.9]} 38... f2 {[%clk
0:01:41.2]} 39. Rf1 {[%clk 0:00:02]} 39... Rgf6 {[%clk 0:01:38.9]} 40. Rg8
{[%clk 0:00:01.5]} 40... Bb5 {[%clk 0:01:37.8]} 41. c4 {[%clk 0:00:01.4]} 41...
dxc4 {[%clk 0:01:37.7]} 42. Nc3 {[%clk 0:00:02.3]} 42... Ba6 {[%clk 0:01:37.7]}
43. b4 {[%clk 0:00:02.7]} 43... Rg6 {[%clk 0:01:35.9]} 44. Rxg6 {[%clk
0:00:02.2]} 44... hxg6 {[%clk 0:01:36]} 45. b5 {[%clk 0:00:03.1]} 45... Bxb5
{[%clk 0:01:19.7]} 46. Nxb5 {[%clk 0:00:04]} 46... g5 {[%clk 0:01:20]} 47. Nc3
{[%clk 0:00:04.6]} 47... g4 {[%clk 0:01:20.3]} 48. Ne2 {[%clk 0:00:05.3]} 48...
Rf3 {[%clk 0:01:19]} 49. Kd2 {[%clk 0:00:03.6]} 49... g3 {[%clk 0:01:19.1]} 50.
Nxg3 {[%clk 0:00:03.4]} 50... Rxg3 {[%clk 0:01:18.6]} 51. Rxf2 {[%clk
0:00:04.3]} 51... Rd3+ {[%clk 0:01:17.6]} 52. Kc2 {[%clk 0:00:04.4]} 52... b5
{[%clk 0:01:17.2]} 53. Rh2 {[%clk 0:00:04.5]} 53... a5 {[%clk 0:01:16.3]} 54.
Rh5 {[%clk 0:00:04.5]} 54... b4 {[%clk 0:01:14.2]} 55. Rxa5 {[%clk 0:00:04.5]}
55... b3+ {[%clk 0:01:14.8]} 56. Kc1 {[%clk 0:00:05.2]} 56... Kd6 {[%clk
0:01:13.3]} 57. Rh5 {[%clk 0:00:02.1]} 57... e5 {[%clk 0:01:12.8]} 58. Rh4
{[%clk 0:00:02.6]} 58... Kd5 {[%clk 0:01:13.3]} 59. Rh8 {[%clk 0:00:02.8]} 59...
Rg3 {[%clk 0:01:12.7]} 60. Kd2 {[%clk 0:00:02.7]} 60... Rg2+ {[%clk 0:01:10.6]}
61. Kc3 {[%clk 0:00:02.2]} 61... Rc2+ {[%clk 0:01:11]} 62. Kb4 {[%clk
0:00:02.5]} 62... Rxb2 {[%clk 0:01:11.6]} 63. Rd8+ {[%clk 0:00:02.7]} 63... Ke4
{[%clk 0:01:11.4]} 64. Kxc4 {[%clk 0:00:03.4]} 64... Rc2+ {[%clk 0:01:01.4]} 65.
Kxb3 {[%clk 0:00:03.7]} 65... Rc7 {[%clk 0:00:56.9]} 66. Kb2 {[%clk 0:00:03.2]}
66... Ke3 {[%clk 0:00:56.7]} 67. Re8 {[%clk 0:00:02.2]} 67... e4 {[%clk
0:00:56.5]} 68. Rd8 {[%clk 0:00:02.7]} 68... Ke2 {[%clk 0:00:55]} 69. Rd4 {[%clk
0:00:02]} 69... e3 {[%clk 0:00:55.1]} 70. Kb1 {[%clk 0:00:01.8]} 70... Ke1
{[%clk 0:00:55.1]} 71. Kb2 {[%clk 0:00:02.5]} 71... e2 {[%clk 0:00:54.1]} 72.
Rd5 {[%clk 0:00:02.1]} 72... Kf2 {[%clk 0:00:49.8]} 73. Rf5+ {[%clk 0:00:02]}
73... Ke3 {[%clk 0:00:48.8]} 74. Re5+ {[%clk 0:00:02.8]} 74... Kf3 {[%clk
0:00:48.6]} 75. Re8 {[%clk 0:00:01.7]} 75... Rc4 {[%clk 0:00:44.9]} 76. Kb3
{[%clk 0:00:01.2]} 76... Re4 {[%clk 0:00:44.2]} 77. Rf8+ {[%clk 0:00:01.9]}
77... Ke3 {[%clk 0:00:44.1]} 0-1

[Event "Late-Titled-Tuesday-Blitz-August-29-2023"]
[Site "Chess.com"]
[Date "2023.08.29"]
[Round "2"]
[White "alexrustemov"]
[Black "AndreiITrifan"]
[Result "1-0"]
[WhiteElo "2884"]
[BlackElo "2560"]
[TimeControl "180+1"]
[EndTime "14:19:21 PDT"]
[Termination "alexrustemov won by resignation"]

1. d4 {[%clk 0:03:00.9]} 1... Nf6 {[%clk 0:02:59.5]} 2. c4 {[%clk 0:03:01.4]}
2... e6 {[%clk 0:02:59.6]} 3. Nf3 {[%clk 0:03:01.8]} 3... b6 {[%clk 0:02:59.6]}
4. a3 {[%clk 0:03:01.6]} 4... Bb7 {[%clk 0:02:57.1]} 5. Nc3 {[%clk 0:03:02]}
5... d5 {[%clk 0:02:52.8]} 6. Bg5 {[%clk 0:03:01.9]} 6... Be7 {[%clk 0:02:51.7]}
7. Bxf6 {[%clk 0:03:02.4]} 7... Bxf6 {[%clk 0:02:51.9]} 8. cxd5 {[%clk
0:03:03.1]} 8... exd5 {[%clk 0:02:46.8]} 9. Qa4+ {[%clk 0:03:03.5]} 9... Qd7
{[%clk 0:02:42.3]} 10. g3 {[%clk 0:03:02.4]} 10... Qxa4 {[%clk 0:02:39.6]} 11.
Nxa4 {[%clk 0:03:03.3]} 11... O-O {[%clk 0:02:38.5]} 12. Bg2 {[%clk 0:03:02.9]}
12... Re8 {[%clk 0:02:34]} 13. e3 {[%clk 0:02:56.9]} 13... Ba6 {[%clk
0:02:20.9]} 14. Rc1 {[%clk 0:02:54]} 14... c6 {[%clk 0:02:20.9]} 15. Bf1 {[%clk
0:02:46.6]} 15... Bb7 {[%clk 0:02:14.3]} 16. Bh3 {[%clk 0:02:39.1]} 16... Ba6
{[%clk 0:02:10.3]} 17. Kd2 {[%clk 0:02:39.4]} 17... Rd8 {[%clk 0:02:02.5]} 18.
b4 {[%clk 0:02:36.4]} 18... Nd7 {[%clk 0:01:58.8]} 19. Nb2 {[%clk 0:02:22.4]}
19... Bb7 {[%clk 0:01:44.9]} 20. Rc2 {[%clk 0:02:14.6]} 20... a5 {[%clk
0:01:34.2]} 21. b5 {[%clk 0:02:07.1]} 21... cxb5 {[%clk 0:01:34.7]} 22. Rc7
{[%clk 0:02:06.3]} 22... Bc8 {[%clk 0:01:34]} 23. Rhc1 {[%clk 0:02:05.9]} 23...
Nc5 {[%clk 0:01:32]} 24. Bxc8 {[%clk 0:01:29.5]} 24... Raxc8 {[%clk 0:01:13.9]}
25. Rxc8 {[%clk 0:01:29]} 25... Rxc8 {[%clk 0:01:14.8]} 26. Ke2 {[%clk
0:01:28.8]} 26... Rb8 {[%clk 0:00:59.9]} 27. Ne5 {[%clk 0:01:18.4]} 27... Bxe5
{[%clk 0:00:56.6]} 28. dxe5 {[%clk 0:01:19.2]} 28... Re8 {[%clk 0:00:54.2]} 29.
f4 {[%clk 0:01:18.2]} 29... f6 {[%clk 0:00:53.3]} 30. exf6 {[%clk 0:01:13.5]}
30... d4 {[%clk 0:00:51.6]} 31. Nd1 {[%clk 0:00:49.3]} 31... gxf6 {[%clk
0:00:47]} 32. Rb1 {[%clk 0:00:48.8]} 32... Na4 {[%clk 0:00:33.2]} 33. Rxb5
{[%clk 0:00:45.4]} 33... Rxe3+ {[%clk 0:00:28.5]} 34. Nxe3 {[%clk 0:00:40.7]}
34... Nc3+ {[%clk 0:00:28.4]} 35. Kd3 {[%clk 0:00:41.3]} 35... Nxb5 {[%clk
0:00:29.3]} 36. Nc4 {[%clk 0:00:41.9]} 36... a4 {[%clk 0:00:20.8]} 37. Nxb6
{[%clk 0:00:38.7]} 37... Nxa3 {[%clk 0:00:20.5]} 38. Nxa4 {[%clk 0:00:39.2]}
38... Nb5 {[%clk 0:00:20.7]} 39. Kc4 {[%clk 0:00:38.2]} 39... Nd6+ {[%clk
0:00:19.2]} 40. Kxd4 {[%clk 0:00:38.8]} 40... Kf7 {[%clk 0:00:19.5]} 41. Nc5
{[%clk 0:00:37.8]} 41... h5 {[%clk 0:00:19]} 42. Ne4 {[%clk 0:00:35.3]} 42...
Nf5+ {[%clk 0:00:18.8]} 43. Kd3 {[%clk 0:00:34.8]} 43... Nh6 {[%clk 0:00:16.9]}
44. Ke2 {[%clk 0:00:33.7]} 44... Ke6 {[%clk 0:00:17.2]} 45. Kf3 {[%clk
0:00:33.1]} 45... Kf5 {[%clk 0:00:17.2]} 46. Nd6+ {[%clk 0:00:28]} 46... Kg6
{[%clk 0:00:17.2]} 47. Nc4 {[%clk 0:00:28.4]} 47... Nf5 {[%clk 0:00:16.1]} 48.
Ne3 {[%clk 0:00:27.7]} 48... Nd4+ {[%clk 0:00:16.4]} 49. Ke4 {[%clk 0:00:28.2]}
49... Ne2 {[%clk 0:00:15.4]} 50. Kd3 {[%clk 0:00:25.2]} 50... Ng1 {[%clk
0:00:13]} 51. h4 {[%clk 0:00:22.5]} 51... Nf3 {[%clk 0:00:10]} 52. f5+ {[%clk
0:00:17.5]} 52... Kg7 {[%clk 0:00:09.3]} 53. Ng2 {[%clk 0:00:17.8]} 53... Ne5+
{[%clk 0:00:09.5]} 54. Ke4 {[%clk 0:00:17.7]} 54... Kh6 {[%clk 0:00:10.2]} 55.
Nf4 {[%clk 0:00:18]} 55... Ng4 {[%clk 0:00:11.1]} 56. Nd5 {[%clk 0:00:17.1]}
56... Kh7 {[%clk 0:00:11]} 57. Kf4 {[%clk 0:00:17]} 57... Kg7 {[%clk 0:00:11.5]}
58. Nc7 {[%clk 0:00:16.9]} 58... Kf7 {[%clk 0:00:11.5]} 59. Ne6 {[%clk
0:00:17.2]} 59... Ne5 {[%clk 0:00:11.3]} 60. Nd4 {[%clk 0:00:17.2]} 60... Nd3+
{[%clk 0:00:11.6]} 61. Ke3 {[%clk 0:00:17.1]} 61... Ne5 {[%clk 0:00:12.5]} 62.
Nf3 {[%clk 0:00:17.6]} 62... Ng4+ {[%clk 0:00:13]} 63. Ke4 {[%clk 0:00:17.5]}
63... Kg7 {[%clk 0:00:13.9]} 64. Kd5 {[%clk 0:00:17.1]} 64... Ne3+ {[%clk
0:00:13.5]} 65. Ke6 {[%clk 0:00:17.6]} 65... Nf1 {[%clk 0:00:13.7]} 66. Nd4
{[%clk 0:00:15.5]} 66... Nxg3 {[%clk 0:00:14.1]} 67. Nc6 {[%clk 0:00:16.2]}
67... Ne2 {[%clk 0:00:11.9]} 68. Ke7 {[%clk 0:00:13.3]} 68... Nd4 {[%clk
0:00:11.9]} 69. Nxd4 {[%clk 0:00:12.4]} 1-0